bitfinex/quotes_ETHUSD_20240810
["timestamp","ask_amount","ask_price","bid_price","bid_amount"]
[1723285445563,4.18881,2635.9,2635.3,2.4237]
[1723285445865,4.18851,2636.3,2635.5,1.89712]
[1723285446061,1.89675,2636.1,2635.6,2.4237]
[1723285446251,3.0,2636.2,2635.6,2.4237]
[1723285446423,1.89681,2636.0,2635.4,4.32092]
[1723285446950,4.8967,2636.2,2635.5,0.07587662]
[1723285448045,4.8967,2636.2,2635.5,0.51555628]
[1723285448244,4.89668,2636.2,2635.5,0.51555628]
[1723285448446,1.89693,2635.9,2635.4,2.4237]
[1723285448650,2.2919,2635.9,2635.2,2.4237]
[1723285448963,4.18878,2635.9,2635.0,9.9137]
[1723285449136,1.8971,2635.6,2635.1,1.181129]
[1723285449341,1.89717,2635.5,2635.1,1.181129]
[1723285449538,1.89706,2635.7,2635.0,2.4237]
[1723285450166,1.89706,2635.7,2635.0,4.32123]
[1723285450673,4.18879,2635.9,2635.0,4.32123]
[1723285450674,1.89711,2635.6,2635.0,2.4237]
[1723285451346,1.89711,2635.6,2635.0,4.32122]
[1723285451544,1.89711,2635.6,2635.1,0.432122]
[1723285451733,1.89699,2635.8,2635.1,0.432122]
[1723285451932,1.89704,2635.7,2635.1,0.432122]
[1723285452339,1.89704,2635.7,2635.2,0.4753342]
[1723285452668,1.89715,2635.6,2635.2,0.4753342]
[1723285452865,1.89704,2635.7,2635.0,1.89752]
[1723285453850,1.89704,2635.7,2635.2,1.133]
[1723285454046,1.89708,2635.7,2635.3,2.4237]
[1723285456071,1.8971,2635.6,2635.2,1.133]
[1723285456583,1.8971,2635.6,2635.3,0.10873338]
[1723285456778,1.89717,2635.5,2635.2,1.133]
[1723285457087,1.89717,2635.5,2635.4,0.10868125]
[1723285457239,3.79448,2635.4,2635.3,0.10873338]
[1723285457435,1.89739,2635.2,2634.7,9.9137]
[1723285457659,1.89732,2635.3,2634.7,9.9137]
[1723285457660,1.89732,2635.3,2634.8,1.133]
[1723285459163,1.89741,2635.2,2634.8,1.133]
[1723285459802,1.89759,2635.0,2634.7,2.4237]
[1723285460296,1.89742,2635.2,2634.4,2.4237]
[1723285460594,1.89759,2635.0,2634.5,1.19157621]
[1723285460799,1.89759,2635.0,2634.4,4.32166]
[1723285461091,2.2919,2635.1,2634.4,4.32166]
[1723285461092,2.2919,2635.1,2634.4,2.4237]
[1723285461267,2.2919,2635.1,2634.3,7.59405212]
[1723285461268,1.89773,2634.8,2634.3,7.59405212]
[1723285461894,1.89789,2634.6,2634.3,7.59405212]
[1723285462188,2.12675,2635.0,2634.3,0.10405212]
[1723285462390,1.89762,2634.9,2634.3,0.17996731]
[1723285462557,1.89762,2634.9,2634.3,2.07798731]
[1723285462963,4.18941,2635.1,2634.4,1.89796]
[1723285463162,1.89744,2635.2,2634.5,1.97378942]
[1723285463477,1.89744,2635.2,2634.6,1.89781]
[1723285463674,5.2919,2635.4,2634.8,1.89761]
[1723285463915,3.0,2635.6,2634.9,2.47367582]
[1723285464213,2.2919,2635.7,2634.9,2.4237]
[1723285464518,1.89695,2635.8,2635.1,1.89739]
[1723285464662,1.89695,2635.8,2635.1,2.52683213]
[1723285464861,1.89729,2635.4,2634.9,2.4237]
[1723285466395,1.89729,2635.4,2634.6,9.38781]
[1723285466396,1.89743,2635.2,2634.7,2.394]
[1723285467005,2.49187098,2635.4,2634.7,4.29169]
[1723285467206,2.49187098,2635.4,2634.7,4.9346305]
[1723285467595,2.49187098,2635.4,2634.7,3.0369405]
[1723285467795,0.59458098,2635.4,2634.8,1.89766]
[1723285468106,0.59458098,2635.4,2634.9,1.89755]
[1723285468267,0.59458098,2635.4,2635.0,0.379521]
[1723285468694,4.89703,2635.7,2635.1,4.29144]
[1723285469397,1.8971,2635.6,2635.1,2.394]
[1723285469606,1.89717,2635.5,2635.1,2.394]
[1723285469768,4.89717,2635.5,2634.9,1.89754]
[1723285469971,1.89717,2635.5,2635.0,0.189754]
[1723285470164,2.4772,2635.4,2634.8,2.394]
[1723285470370,1.89736,2635.3,2634.8,2.394]
[1723285470971,3.79473,2635.3,2634.8,2.394]
[1723285471170,1.89736,2635.3,2634.8,2.394]
[1723285471389,1.89736,2635.3,2634.9,0.10633908]
[1723285471593,3.79497,2635.1,2634.9,0.10633908]
[1723285471789,1.89753,2635.0,2634.4,4.29195]
[1723285472688,1.89761,2634.9,2634.4,1.89795]
[1723285472893,1.89761,2634.9,2634.4,3.08655021]
[1723285473201,2.4772,2635.0,2634.4,3.08655021]
[1723285473612,1.8976,2634.9,2634.4,1.18860021]
[1723285473785,1.89779,2634.7,2634.3,7.59405212]
[1723285474108,1.89779,2634.7,2634.3,0.10405212]
[1723285474272,1.89763,2634.9,2634.3,0.10405212]
[1723285474469,1.89773,2634.8,2634.3,0.10405212]
[1723285475282,1.89775,2634.7,2634.3,0.10405212]
[1723285475678,1.89783,2634.6,2634.3,0.10405212]
[1723285475894,1.89775,2634.7,2634.3,0.10405212]
[1723285476094,1.89763,2634.9,2634.3,0.10405212]
[1723285477204,1.89763,2634.9,2634.3,2.00207212]
[1723285477407,1.89768,2634.8,2634.3,2.00207212]
[1723285477803,2.4772,2635.0,2634.3,2.00207212]
[1723285478017,2.4772,2635.0,2634.3,0.10405212]
[1723285478179,3.0,2635.2,2634.6,1.89777]
[1723285478583,1.89759,2635.0,2634.4,2.394]
[1723285478810,4.37485,2634.9,2634.3,2.00205212]
[1723285479015,1.89768,2634.8,2634.3,2.00205212]
[1723285479313,1.89768,2634.8,2634.3,0.10405212]
[1723285479695,2.4772,2634.9,2634.3,0.10405212]
[1723285479898,1.89781,2634.7,2634.3,0.10405212]
[1723285480705,1.89795,2634.5,2634.3,0.10405212]
[1723285482537,4.37515,2634.5,2634.3,0.10405212]
[1723285482705,6.2731,2634.5,2634.3,0.10405212]
[1723285482890,6.70404878,2634.5,2634.3,0.10405212]
[1723285483329,4.80609878,2634.5,2634.3,0.10405212]
[1723285483507,4.37515,2634.5,2634.3,0.10405212]
[1723285484098,4.37514,2634.5,2634.3,0.10405212]
[1723285484518,1.89796,2634.4,2634.3,0.10405212]
[1723285485518,4.37514,2634.5,2634.3,0.10405212]
[1723285485713,4.37514,2634.5,2634.4,0.10402728]
[1723285485928,3.104491,2634.5,2634.3,0.10405212]
[1723285486102,1.89796,2634.4,2634.3,0.10405212]
[1723285486306,3.79592,2634.4,2634.3,0.10405212]
[1723285488500,1.89796,2634.4,2634.3,0.10405212]
[1723285488942,3.79592,2634.4,2634.3,0.20828759]
[1723285489149,4.423232,2634.4,2634.3,0.20828759]
[1723285489315,4.423232,2634.4,2634.3,0.10405212]
[1723285489614,1.89796,2634.4,2634.3,0.10405212]
[1723285489799,1.89785,2634.6,2634.3,0.10405212]
[1723285490010,1.89785,2634.6,2634.3,0.20841243]
[1723285490842,3.0,2634.7,2634.3,0.20841243]
[1723285491043,1.89782,2634.6,2634.3,0.20841243]
[1723285491646,1.8972,2635.5,2634.3,2.10639243]
[1723285491647,1.89754,2635.0,2634.3,2.10639243]
[1723285491948,1.89754,2635.0,2634.4,1.89791]
[1723285492154,1.89746,2635.1,2634.5,1.89787]
[1723285492358,1.89746,2635.1,2634.6,2.3865]
[1723285492645,1.89746,2635.1,2634.6,2.49048537]
[1723285493606,1.89765,2634.9,2634.6,0.10398537]
[1723285493814,1.89765,2634.9,2634.3,4.38853212]
[1723285494305,1.89765,2634.9,2634.4,0.10408346]
[1723285495212,8.82268,2634.5,2634.4,0.10408346]
[1723285495340,1.89787,2634.6,2634.4,0.10408346]
[1723285495534,1.89775,2634.7,2634.3,0.10405212]
[1723285495734,1.89776,2634.7,2634.4,0.0927346]
[1723285495966,1.89782,2634.6,2634.4,0.0927346]
[1723285496165,1.89782,2634.6,2634.3,0.10405212]
[1723285496366,1.89791,2634.5,2634.3,0.10405212]
[1723285497195,1.89796,2634.4,2634.3,0.10405212]
[1723285497485,3.79592,2634.4,2634.3,0.10405212]
[1723285498296,6.79592,2634.4,2634.3,0.10405212]
[1723285502271,4.89796,2634.4,2634.3,0.10405212]
[1723285502476,1.89796,2634.4,2634.3,0.10405212]
[1723285502700,1.89789,2634.5,2634.3,0.19683889]
[1723285503411,4.89776,2634.7,2634.3,0.19683889]
[1723285503835,1.89776,2634.7,2634.3,0.19683889]
[1723285504568,1.8979,2634.5,2634.3,0.19683889]
[1723285504973,1.89796,2634.4,2634.3,0.19683889]
[1723285505237,2.577546,2634.4,2634.3,0.19683889]
[1723285505390,10.99158,2634.4,2634.3,0.10405212]
[1723285506148,13.43954,2634.4,2634.3,0.10405212]
[1723285506471,13.43954,2634.4,2634.3,2.12e-06]
[1723285506609,15.055594,2634.4,2634.3,2.12e-06]
[1723285508168,13.55359106,2634.4,2634.3,2.12e-06]
[1723285508748,15.45155106,2634.4,2634.3,2.12e-06]
[1723285509311,18.57124106,2634.4,2634.3,2.12e-06]
[1723285509514,15.45155106,2634.4,2634.3,2.12e-06]
[1723285509908,19.52220106,2634.4,2634.3,2.12e-06]
[1723285510329,1.89933,2632.5,2632.4,0.1269636]
[1723285510517,3.79866,2632.5,2632.4,0.1269636]
[1723285510712,1.89933,2632.5,2632.4,0.2134771]
[1723285510914,1.89933,2632.5,2632.4,0.1269636]
[1723285511252,3.79866,2632.5,2632.4,0.1269636]
[1723285511838,4.368448,2632.5,2632.4,0.1269636]
[1723285512143,6.79866,2632.5,2632.4,0.1269636]
[1723285512749,4.89933,2632.5,2632.4,0.1269636]
[1723285512929,1.89922,2632.7,2632.4,0.1269636]
[1723285513133,3.0,2632.7,2632.4,0.1269636]
[1723285513320,3.0,2632.7,2632.5,0.0870225]
[1723285513717,1.89911,2632.9,2632.5,0.0870225]
[1723285513951,1.89912,2632.8,2632.5,0.0870225]
[1723285514250,1.89919,2632.7,2632.5,0.0870225]
[1723285514651,3.0,2632.8,2632.5,0.0870225]
[1723285514821,1.89883,2633.2,2632.5,2.50718363]
[1723285515019,0.01233238,2634.2,2632.5,2.50718363]
[1723285515020,2.2977,2634.0,2632.7,4.24333]
[1723285515222,1.89857,2633.6,2632.8,0.0759553]
[1723285515453,1.89857,2633.6,2632.8,0.16269633]
[1723285515848,1.89857,2633.6,2633.0,1.89894]
[1723285516023,1.89857,2633.6,2633.0,2.10510363]
[1723285516220,1.89847,2633.7,2633.2,2.3442]
[1723285516634,1.89833,2633.9,2633.3,0.08615564]
[1723285516878,1.89841,2633.8,2633.3,0.08615564]
[1723285517033,1.89854,2633.6,2633.3,0.08615564]
[1723285517235,1.89854,2633.6,2633.2,2.3442]
[1723285517443,1.89854,2633.6,2633.4,0.08610343]
[1723285517658,1.89847,2633.7,2633.3,0.32057564]
[1723285517990,1.89847,2633.7,2633.4,0.08610343]
[1723285518145,1.89859,2633.6,2633.4,0.08610343]
[1723285518346,1.89859,2633.6,2633.2,2.3442]
[1723285518582,1.89869,2633.4,2633.0,2.55036363]
[1723285518767,1.89869,2633.4,2633.0,2.3442]
[1723285519376,1.89883,2633.2,2633.0,2.3442]
[1723285519884,1.89852,2633.7,2633.0,2.3442]
[1723285520102,1.89852,2633.7,2633.1,0.28028751]
[1723285520260,1.8984,2633.8,2633.1,0.30872055]
[1723285520589,1.89847,2633.7,2633.1,0.23442]
[1723285521253,4.89833,2633.9,2633.2,1.8988]
[1723285521457,1.89816,2634.2,2633.3,0.213322]
[1723285521672,1.8985,2633.7,2633.1,0.23442]
[1723285522046,1.8985,2633.7,2633.1,2.13331]
[1723285522262,1.89835,2633.9,2633.2,1.89882]
[1723285522263,4.89839,2633.8,2633.2,1.89882]
[1723285522454,4.89839,2633.8,2633.3,0.213324]
[1723285522659,6.79645,2634.1,2633.5,2.3442]
[1723285522841,6.79645,2634.1,2633.5,4.2428]
[1723285522842,4.89821,2634.1,2633.5,4.2428]
[1723285523075,1.89821,2634.1,2633.5,4.6948112]
[1723285523849,1.89806,2634.3,2633.6,0.07593434]
[1723285524252,1.89806,2634.3,2633.7,1.89846]
[1723285524446,3.79616,2634.3,2633.7,0.66692055]
[1723285524689,1.89806,2634.3,2633.8,0.07593068]
[1723285524897,1.89806,2634.3,2633.7,2.56537055]
[1723285525194,1.89811,2634.2,2633.7,0.74284844]
[1723285525395,1.89836,2633.9,2633.5,2.3442]
[1723285526583,1.89818,2634.1,2633.5,2.3442]
[1723285526754,1.89826,2634.0,2633.5,2.3442]
[1723285526954,1.89818,2634.1,2633.5,2.9796874]
[1723285527200,1.89818,2634.1,2633.5,4.8782774]
[1723285528710,3.0,2634.2,2633.6,0.07593647]
[1723285529001,1.89811,2634.2,2633.6,0.57135786]
[1723285529300,4.89811,2634.2,2633.6,2.46988786]
[1723285529654,1.89823,2634.1,2633.6,0.49542139]
[1723285530469,1.89826,2634.0,2633.5,2.3442]
[1723285530683,1.8984,2633.8,2633.2,2.2974]
[1723285531086,3.79685,2633.8,2633.2,2.2974]
[1723285531285,2.278145,2633.8,2633.2,2.2974]
[1723285531588,1.89858,2633.6,2633.3,0.08547624]
[1723285531789,1.89861,2633.5,2633.2,2.2974]
[1723285531989,1.89861,2633.5,2633.4,0.08542403]
[1723285532198,1.89861,2633.5,2632.9,14.6074]
[1723285532487,1.89861,2633.5,2633.4,0.08556738]
[1723285532694,1.89861,2633.5,2632.9,16.50643]
[1723285532897,1.89861,2633.5,2633.4,0.08556738]
[1723285533066,1.89855,2633.6,2632.9,16.50643]
[1723285533267,1.89855,2633.6,2633.4,0.08556738]
[1723285533479,1.89862,2633.5,2632.9,16.50643]
[1723285533876,4.89843,2633.8,2632.9,12.31]
[1723285534077,1.89828,2634.0,2633.1,2.2974]
[1723285534277,1.89825,2634.0,2633.6,2.2974]
[1723285534483,1.89801,2634.4,2633.6,0.22974]
[1723285534684,1.89837,2633.9,2633.3,2.2974]
[1723285535072,3.79676,2633.9,2633.3,2.2974]
[1723285535402,1.89837,2633.9,2633.3,4.19615]
[1723285535581,1.89837,2633.9,2633.4,0.419615]
[1723285536868,5.461,2634.0,2633.3,2.2974]
[1723285537072,1.89852,2633.7,2633.3,2.2974]
[1723285537498,4.89852,2633.7,2633.3,2.2974]
[1723285537671,1.89856,2633.6,2633.3,2.2974]
[1723285537874,1.89869,2633.4,2633.0,2.2974]
[1723285538571,1.89869,2633.4,2632.8,9.3891]
[1723285538572,1.89884,2633.2,2632.8,7.49]
[1723285541308,1.89878,2633.3,2632.8,7.49]
[1723285541708,1.89869,2633.4,2632.7,1.89917]
[1723285541881,1.89869,2633.4,2632.7,2.780858]
[1723285542086,3.79743,2633.4,2632.7,2.780858]
[1723285542385,1.89877,2633.3,2632.7,2.780858]
[1723285542584,3.0,2633.5,2632.9,1.89899]
[1723285542770,3.0,2633.5,2633.0,2.2974]
[1723285542978,3.0,2633.5,2633.0,4.19635]
[1723285543179,1.89856,2633.6,2633.0,4.19635]
[1723285543703,4.89847,2633.7,2633.1,1.89889]
[1723285544384,3.0,2633.7,2633.1,1.89889]
[1723285544594,3.79686,2633.8,2633.1,1.89889]
[1723285544793,3.0,2633.7,2633.1,2.8414734]
[1723285545609,1.89841,2633.8,2633.1,4.7402834]
[1723285545779,1.89841,2633.8,2633.2,0.76472174]
[1723285545980,3.79686,2633.8,2633.2,0.76472174]
[1723285546180,3.0,2633.7,2633.2,0.76472174]
[1723285546416,1.89841,2633.8,2633.3,0.08604342]
[1723285546613,1.89841,2633.8,2633.1,3.79769]
[1723285546808,1.89841,2633.8,2633.4,0.08599121]
[1723285547013,1.89841,2633.8,2633.2,1.89883]
[1723285547209,1.89841,2633.8,2633.5,0.08593901]
[1723285547426,1.89841,2633.8,2633.2,1.89883]
[1723285547715,1.89846,2633.7,2633.6,0.0858868]
[1723285547925,1.89856,2633.6,2633.0,3.54824]
[1723285548220,1.89856,2633.6,2633.0,5.4472]
[1723285549097,1.89856,2633.6,2633.1,1.755717]
[1723285549818,3.0,2633.7,2633.2,2.4064]
[1723285549985,1.89815,2634.2,2633.6,2.4064]
[1723285550319,1.89815,2634.2,2633.7,0.07593022]
[1723285551459,1.89815,2634.2,2633.7,1.97438022]
[1723285551880,1.89815,2634.2,2633.7,1.89845]
[1723285554400,3.0,2634.3,2633.7,3.79685]
[1723285554588,1.89799,2634.4,2633.7,1.8984]
[1723285554789,1.89807,2634.3,2633.7,1.8984]
[1723285555318,4.89807,2634.3,2633.7,1.8984]
[1723285555711,1.89831,2634.0,2633.6,2.4064]
[1723285555884,0.189831,2633.9,2633.6,2.4064]
[1723285556224,1.89831,2634.0,2633.6,2.4064]
[1723285559129,1.89831,2634.0,2633.4,1.89863]
[1723285560500,3.0,2634.3,2633.0,22.2064]
[1723285560501,2.4793,2633.9,2633.0,22.2064]
[1723285560700,3.79758,2633.3,2632.8,2.4064]
[1723285560908,1.89877,2633.3,2632.5,4.30572]
[1723285561133,1.89926,2632.6,2632.4,0.1269636]
[1723285561440,1.89933,2632.5,2632.4,0.1269636]
[1723285561797,3.79866,2632.5,2632.4,0.1269636]
[1723285561998,6.79866,2632.5,2632.4,0.1269636]
[1723285562831,2.4793,2633.2,2632.6,1.89924]
[1723285563036,1.89873,2633.4,2632.7,1.89917]
[1723285563331,1.89873,2633.4,2632.6,1.97520143]
[1723285563533,1.89876,2633.3,2632.7,0.19752014]
[1723285563702,1.89876,2633.3,2632.6,1.89924]
[1723285563905,1.89898,2633.0,2632.4,2.8479636]
[1723285564221,1.89892,2633.1,2632.4,2.0263136]
[1723285564408,3.0,2633.2,2632.6,1.89925]
[1723285564602,1.89879,2633.3,2632.6,1.89925]
[1723285565532,3.79761,2633.3,2632.6,1.89925]
[1723285565744,4.89883,2633.2,2632.6,0.8028787]
[1723285565914,1.89883,2633.2,2632.6,0.8028787]
[1723285566245,3.0,2633.2,2632.6,0.8028787]
[1723285566475,4.89868,2633.4,2632.7,2.2597]
[1723285566641,4.89868,2633.4,2632.7,2.75587787]
[1723285566829,1.89876,2633.3,2632.7,2.75587787]
[1723285567139,1.89864,2633.5,2632.9,1.89899]
[1723285567338,1.89838,2633.9,2633.0,2.9868439]
[1723285567512,1.8984,2633.8,2633.2,1.8988]
[1723285567713,1.8984,2633.8,2633.2,1.97474286]
[1723285567915,1.89838,2633.9,2633.2,4.23444286]
[1723285568132,1.8982,2634.1,2633.4,1.89867]
[1723285568334,1.89811,2634.2,2633.5,0.07593752]
[1723285569122,1.89806,2634.3,2633.6,1.89854]
[1723285569640,1.89812,2634.2,2633.6,1.89854]
[1723285569823,4.89812,2634.2,2633.6,1.89854]
[1723285570720,4.89812,2634.2,2633.5,0.07593752]
[1723285570915,3.0,2634.2,2633.5,0.07593752]
[1723285571251,1.89859,2633.6,2632.8,6.87978]
[1723285571553,1.89882,2633.3,2632.8,4.9807]
[1723285572050,1.89883,2633.2,2632.8,4.9807]
[1723285572233,1.89883,2633.2,2632.8,2.2597]
[1723285572663,1.89883,2633.2,2632.6,2.2597]
[1723285572824,1.89896,2633.1,2632.6,2.2597]
[1723285573178,1.89898,2633.0,2632.6,2.2597]
[1723285573330,1.89883,2633.2,2632.6,2.2597]
[1723285573519,3.79772,2633.2,2632.6,2.2597]
[1723285573723,1.8989,2633.1,2632.6,2.2597]
[1723285574006,1.89898,2633.0,2632.6,2.2597]
[1723285574475,1.89905,2632.9,2632.4,0.1269636]
[1723285576432,1.89905,2632.9,2632.5,0.08144961]
[1723285580128,1.89919,2632.7,2632.5,0.08144961]
[1723285580330,1.89926,2632.6,2632.5,0.08144961]
[1723285580532,2.522525,2632.6,2632.5,0.08144961]
[1723285582598,4.421785,2632.6,2632.5,0.08144961]
[1723285583087,7.421785,2632.6,2632.5,0.08144961]
[1723285583969,3.79866,2632.5,2632.4,0.1269636]
[1723285584171,7.7307775,2632.5,2632.4,0.1269636]
[1723285584787,10.0970775,2632.5,2632.4,0.1269636]
[1723285585986,5.8314475,2632.5,2632.4,0.1269636]
[1723285586182,7.7307775,2632.5,2632.4,0.1269636]
[1723285586771,10.0970775,2632.5,2632.4,0.1269636]
[1723285588898,11.9964075,2632.5,2632.4,0.1269636]
[1723285589110,10.0970775,2632.5,2632.4,0.1269636]
[1723285591104,11.9964075,2632.5,2632.4,0.1269636]
[1723285592588,10.0970775,2632.5,2632.4,0.1269636]
[1723285592779,11.9964075,2632.5,2632.4,0.1269636]
[1723285593927,12.5464075,2632.5,2632.4,0.1269636]
[1723285595218,11.9964075,2632.5,2632.4,0.1269636]
[1723285596211,10.0970775,2632.5,2632.4,0.1269636]
[1723285597284,11.9964075,2632.5,2632.4,0.1269636]
[1723285597918,10.0970775,2632.5,2632.4,0.1269636]
[1723285598517,10.0970775,2632.5,2632.4,3.6e-06]
[1723285598720,2.3663,2632.0,2630.9,2.4223]
[1723285598917,1.89997,2631.7,2630.9,2.4223]
[1723285599145,1.89997,2631.7,2631.0,1.90036]
[1723285599146,1.89999,2631.6,2631.0,1.90036]
[1723285599444,1.90014,2631.4,2630.9,2.4223]
[1723285600041,1.90012,2631.4,2630.9,2.4223]
[1723285600185,1.90021,2631.3,2630.9,3.603583]
[1723285600384,1.90007,2631.5,2630.9,3.603583]
[1723285601715,3.0,2631.6,2630.9,3.603583]
[1723285601916,1.90018,2631.4,2630.9,2.4223]
[1723285602113,3.0,2631.5,2631.0,1.90041]
[1723285602350,3.0,2631.8,2631.0,1.90041]
[1723285602554,3.726607,2631.8,2630.9,2.4223]
[1723285602847,1.90007,2631.5,2630.9,2.4223]
[1723285603032,1.90012,2631.4,2630.9,2.4223]
[1723285603238,1.89999,2631.6,2630.9,2.4223]
[1723285603963,1.90009,2631.5,2630.9,2.4223]
[1723285604180,3.0,2631.5,2631.0,0.24223]
[1723285604339,4.89993,2631.7,2631.0,0.24223]
[1723285604739,1.9,2631.6,2631.0,0.24223]
[1723285604973,1.9,2631.6,2630.9,4.32272]
[1723285604974,4.89999,2631.6,2630.9,2.4223]
[1723285605135,1.90033,2631.2,2630.7,7.49]
[1723285605341,0.380054,2631.1,2630.7,7.49]
[1723285605540,1.90035,2631.1,2630.7,7.49]
[1723285605998,1.90021,2631.3,2630.7,7.49]
[1723285606361,1.90031,2631.2,2630.9,2.4055]
[1723285606547,1.90031,2631.2,2630.8,0.08173323]
[1723285606751,1.90031,2631.2,2630.7,7.49]
[1723285607074,4.90027,2631.3,2630.8,1.07128323]
[1723285607406,3.0,2631.4,2630.9,4.30598]
[1723285607682,1.90007,2631.5,2631.0,0.08167848]
[1723285608044,1.90013,2631.4,2631.0,0.08167848]
[1723285608253,4.25769,2631.5,2631.0,0.08167848]
[1723285608449,1.90025,2631.3,2631.0,0.08167848]
[1723285608749,1.90025,2631.3,2631.1,0.08161994]
[1723285609055,1.90025,2631.3,2631.2,0.08156765]
[1723285609257,1.90025,2631.3,2630.5,4.30624]
[1723285609458,1.90021,2631.3,2630.6,1.7440788]
[1723285609848,1.90028,2631.2,2630.6,1.7440788]
[1723285610066,1.90028,2631.2,2630.6,3.6447788]
[1723285610399,1.90028,2631.2,2630.7,0.79510188]
[1723285610753,1.90016,2631.4,2630.9,2.4055]
[1723285611151,1.9002,2631.3,2631.0,0.08223308]
[1723285612859,1.90027,2631.2,2631.0,0.08223308]
[1723285613050,1.90027,2631.2,2630.7,0.79510188]
[1723285613247,1.90027,2631.2,2630.8,0.48622259]
[1723285613662,1.90027,2631.2,2630.9,0.08231032]
[1723285613980,1.90027,2631.2,2630.6,2.4055]
[1723285614189,1.90027,2631.2,2631.0,0.08225801]
[1723285614554,1.90027,2631.2,2630.6,2.4055]
[1723285614761,1.90027,2631.2,2631.1,0.08220571]
[1723285614977,1.90035,2631.1,2630.6,2.4055]
[1723285615278,1.90046,2631.0,2630.7,0.430621]
[1723285615502,1.90046,2631.0,2630.6,2.4055]
[1723285615786,1.90046,2631.0,2630.3,14.51736]
[1723285615949,1.90051,2630.9,2630.3,4.30636]
[1723285617092,1.90056,2630.8,2630.3,2.4055]
[1723285617293,1.90051,2630.9,2630.3,4.30641]
[1723285618383,1.90037,2631.1,2630.3,2.4055]
[1723285618581,1.90049,2630.9,2630.3,4.30637]
[1723285618899,1.90037,2631.1,2630.4,0.430637]
[1723285619103,1.90046,2631.0,2630.4,0.430637]
[1723285619395,1.90046,2631.0,2630.4,2.331477]
[1723285620151,1.90037,2631.1,2630.4,2.331437]
[1723285621299,1.90046,2631.0,2630.4,2.331437]
[1723285621483,1.90046,2631.0,2630.5,0.08260062]
[1723285622309,1.90054,2630.9,2630.5,0.08260062]
[1723285622509,1.90061,2630.8,2630.5,0.08260062]
[1723285622792,4.90061,2630.8,2630.6,0.0825483]
[1723285623003,5.816485,2630.8,2630.6,0.0825483]
[1723285623204,5.816485,2630.8,2630.3,2.4055]
[1723285623406,4.90061,2630.8,2630.3,2.4055]
[1723285623608,4.90061,2630.8,2630.7,0.08249598]
[1723285623808,4.90061,2630.8,2630.3,2.4055]
[1723285624016,4.90061,2630.8,2630.7,0.08249598]
[1723285624311,1.90064,2630.7,2630.3,2.4055]
[1723285625068,3.0,2630.8,2630.3,2.4055]
[1723285625482,4.90054,2630.9,2630.3,2.4055]
[1723285625678,1.9006,2630.8,2630.3,2.4055]
[1723285625892,1.90065,2630.7,2630.3,2.4055]
[1723285626975,1.90065,2630.7,2630.1,4.2248]
[1723285627572,1.90065,2630.7,2630.1,5.858498]
[1723285629170,2.2821,2630.5,2630.0,7.49]
[1723285629373,0.425814,2630.9,2629.2,3.65453033]
[1723285629374,6.08452,2629.9,2629.2,2.3238]
[1723285629571,6.08452,2629.9,2629.1,7.49]
[1723285629572,9.08452,2629.9,2629.1,7.49]
[1723285629883,10.183082,2629.9,2629.1,7.49]
[1723285630084,5.999772,2629.9,2629.3,2.3238]
[1723285630310,10.183082,2629.9,2628.7,1.90203]
[1723285630472,12.634292,2629.9,2628.5,11.716]
[1723285631281,12.634292,2629.9,2629.8,3.6e-06]
[1723285631481,10.183082,2629.9,2629.8,3.6e-06]
[1723285631710,8.281872,2629.9,2629.8,3.6e-06]
[1723285632136,1.90118,2630.0,2629.8,3.6e-06]
[1723285632439,4.18289,2630.5,2629.8,3.6e-06]
[1723285632591,1.90086,2630.4,2629.8,3.6e-06]
[1723285632791,1.90086,2630.4,2629.9,0.07157141]
[1723285632992,1.90093,2630.3,2629.9,0.07157141]
[1723285633389,1.901,2630.2,2629.9,0.07157141]
[1723285633990,1.90114,2630.0,2629.9,0.07157141]
[1723285634194,1.901,2630.2,2629.9,0.07157141]
[1723285634404,1.90087,2630.4,2629.9,0.07157141]
[1723285634782,2.390957,2630.4,2629.9,0.07157141]
[1723285635115,1.90104,2630.2,2629.9,0.07157141]
[1723285635329,0.490087,2630.4,2629.9,0.07157141]
[1723285635330,1.90114,2630.0,2629.9,0.07157141]
[1723285635909,1.90106,2630.1,2629.9,0.07157141]
[1723285636124,3.0,2630.2,2629.9,0.07157141]
[1723285636429,1.9008,2630.5,2629.9,0.07157141]
[1723285636576,1.9008,2630.5,2630.0,2.3238]
[1723285636780,3.0,2630.6,2630.1,0.07201465]
[1723285637074,1.90078,2630.5,2630.1,0.07201465]
[1723285637297,3.0,2630.6,2630.1,0.07201465]
[1723285637507,1.90099,2630.2,2630.1,0.07201465]
[1723285637710,1.9011,2630.1,2629.8,3.6e-06]
[1723285637909,2.2821,2630.1,2629.8,3.6e-06]
[1723285638121,1.90119,2630.0,2629.9,0.07206951]
[1723285638419,5.319519,2630.0,2629.9,0.07206951]
[1723285638618,7.220709,2630.0,2629.9,0.07206951]
[1723285638938,1.90121,2629.9,2629.8,3.6e-06]
[1723285639138,3.80242,2629.9,2629.8,3.6e-06]
[1723285639287,4.9428239,2629.9,2629.8,0.07212546]
[1723285639487,7.9428239,2629.9,2629.8,3.6e-06]
[1723285641628,12.1261339,2629.9,2629.8,3.6e-06]
[1723285641812,12.6761339,2629.9,2629.8,3.6e-06]
[1723285642002,12.6761339,2629.9,2628.1,2.3238]
[1723285642003,1.90198,2628.9,2628.1,2.3238]
[1723285642232,2.2821,2628.8,2628.1,0.52529122]
[1723285642550,1.90155,2629.5,2628.3,4.22614]
[1723285642823,1.90133,2629.8,2629.2,1.90165]
[1723285643023,1.90124,2629.9,2629.2,1.90165]
[1723285643322,1.90135,2629.7,2629.3,0.07314341]
[1723285643525,1.90135,2629.7,2629.1,2.3238]
[1723285643702,2.319634,2629.8,2629.2,1.90171]
[1723285643897,1.90124,2629.9,2629.3,1.90164]
[1723285644095,1.90124,2629.9,2629.2,1.97490578]